[Event "Titled Tuesday Blitz April 11 Early 2023"]
[White "Acor, Corey"]
[Black "Przybylski, Wojciech"]
[WhiteFideId "2024861"]
[BlackFideId "1117599"]
[WhiteElo "2341"]
[BlackElo "2222"]
[Result "1-0"]
[Round "02"]
[TimeControl "180+2"]
[Date "2023.04.11"]
[WhiteClock "0:00:57"]
[BlackClock "0:00:02"]

1. e4 {[%clk 0:03:00]}  e5 {[%clk 0:02:59]} 2. Nc3 {[%clk 0:03:00]}  Nf6 {[%clk 0:02:59]} 3. g3 {[%clk 0:03:00]}  h5 {[%clk 0:02:59]} 4. Bg2 {[%clk 0:03:00]}  h4 {[%clk 0:03:00]} 5. g4 {[%clk 0:02:59]}  d5 {[%clk 0:02:45]} 6. h3 {[%clk 0:02:57]}  d4 {[%clk 0:02:31]} 7. Nce2 {[%clk 0:02:52]}  d3 {[%clk 0:02:31]} 8. cxd3 {[%clk 0:02:50]}  Nc6 {[%clk 0:02:31]} 9. d4 {[%clk 0:02:37]}  exd4 {[%clk 0:02:17]} 10. d3 {[%clk 0:02:36]}  Bb4+ {[%clk 0:02:12]} 11. Bd2 {[%clk 0:02:36]}  Qe7 {[%clk 0:02:10]} 12. f4 {[%clk 0:02:33]}  Bd7 {[%clk 0:02:04]} 13. Nf3 {[%clk 0:02:32]}  Bc5 {[%clk 0:01:59]} 14. a3 {[%clk 0:02:23]}  a5 {[%clk 0:01:58]} 15. Rc1 {[%clk 0:02:22]}  Bb6 {[%clk 0:01:55]} 16. f5 {[%clk 0:02:12]}  g6 {[%clk 0:01:37]} 17. Bg5 {[%clk 0:02:09]}  gxf5 {[%clk 0:01:34]} 18. exf5 {[%clk 0:02:01]}  Ne5 {[%clk 0:01:27]} 19. O-O {[%clk 0:01:51]}  O-O-O {[%clk 0:01:16]} 20. Qb3 {[%clk 0:01:36]}  Nxf3+ {[%clk 0:00:35]} 21. Bxf3 {[%clk 0:01:35]}  Bc6 {[%clk 0:00:06]} 22. Bxc6 {[%clk 0:01:24]}  Qxe2 {[%clk 0:00:05]} 23. Bf3 {[%clk 0:01:13]}  Qe5 {[%clk 0:00:05]} 24. Qxb6 {[%clk 0:01:10]}  Qg3+ {[%clk 0:00:04]} 25. Bg2 {[%clk 0:01:10]}  Nd5 {[%clk 0:00:04]} 26. Qxd4 {[%clk 0:01:03]}  f6 {[%clk 0:00:03]} 27. Bf4 {[%clk 0:00:57]}  Nxf4 {[%clk 0:00:02]} 28. Qxf4 {[%clk 0:00:57]}  Qxd3 {[%clk 0:00:02]} 29. Qxc7# {[%clk 0:00:57]} 1-0


[Site "https://www.chess.com"]

[Event "Titled Tuesday Blitz April 11 Early 2023"]
[White "Arias, Juan Cruz"]
[Black "Samunenkov, Ihor"]
[WhiteFideId "118540"]
[BlackFideId "14187086"]
[WhiteElo "2243"]
[BlackElo "2457"]
[Result "1-0"]
[Round "02"]
[TimeControl "180+2"]
[Date "2023.04.11"]
[WhiteClock "0:00:24"]
[BlackClock "0:00:01"]

1. d4 {[%clk 0:03:00]}  Nf6 {[%clk 0:02:57]} 2. Nf3 {[%clk 0:03:01]}  e6 {[%clk 0:02:56]} 3. e3 {[%clk 0:03:02]}  d5 {[%clk 0:02:53]} 4. Bd3 {[%clk 0:03:02]}  Be7 {[%clk 0:02:53]} 5. O-O {[%clk 0:03:03]}  O-O {[%clk 0:02:53]} 6. Nbd2 {[%clk 0:02:59]}  c5 {[%clk 0:02:48]} 7. c3 {[%clk 0:02:59]}  Nbd7 {[%clk 0:02:09]} 8. Re1 {[%clk 0:02:58]}  b6 {[%clk 0:02:08]} 9. e4 {[%clk 0:02:59]}  dxe4 {[%clk 0:02:08]} 10. Nxe4 {[%clk 0:02:59]}  Bb7 {[%clk 0:02:08]} 11. Ng3 {[%clk 0:02:58]}  cxd4 {[%clk 0:02:06]} 12. cxd4 {[%clk 0:02:58]}  Nd5 {[%clk 0:01:55]} 13. a3 {[%clk 0:02:54]}  N7f6 {[%clk 0:01:48]} 14. Ne5 {[%clk 0:02:54]}  a6 {[%clk 0:01:35]} 15. Bd2 {[%clk 0:02:53]}  Rc8 {[%clk 0:01:34]} 16. Qe2 {[%clk 0:02:44]}  Re8 {[%clk 0:01:32]} 17. Rad1 {[%clk 0:02:34]}  Bf8 {[%clk 0:01:24]} 18. h4 {[%clk 0:02:28]}  b5 {[%clk 0:00:57]} 19. Bb1 {[%clk 0:02:27]}  Nb6 {[%clk 0:00:55]} 20. Ba5 {[%clk 0:02:23]}  Qd5 {[%clk 0:00:50]} 21. f3 {[%clk 0:02:22]}  Nc4 {[%clk 0:00:49]} 22. Bc3 {[%clk 0:01:57]}  Nxa3 {[%clk 0:00:40]} 23. Ne4 {[%clk 0:01:57]}  Nxb1 {[%clk 0:00:37]} 24. Rxb1 {[%clk 0:01:45]}  b4 {[%clk 0:00:38]} 25. Nxf6+ {[%clk 0:01:33]}  gxf6 {[%clk 0:00:39]} 26. Ng4 {[%clk 0:01:34]}  Bg7 {[%clk 0:00:29]} 27. Bd2 {[%clk 0:01:34]}  Qxd4+ {[%clk 0:00:21]} 28. Be3 {[%clk 0:01:35]}  Qc4 {[%clk 0:00:22]} 29. Qf2 {[%clk 0:01:35]}  Qc2 {[%clk 0:00:17]} 30. Qg3 {[%clk 0:01:34]}  Kh8 {[%clk 0:00:12]} 31. h5 {[%clk 0:01:34]}  f5 {[%clk 0:00:09]} 32. h6 {[%clk 0:01:33]}  fxg4 {[%clk 0:00:05]} 33. hxg7+ {[%clk 0:01:32]}  Kxg7 {[%clk 0:00:06]} 34. Bd4+ {[%clk 0:01:25]}  Kg8 {[%clk 0:00:05]} 35. Qe5 {[%clk 0:01:23]}  Kf8 {[%clk 0:00:04]} 36. Qd6+ {[%clk 0:01:10]}  Kg8 {[%clk 0:00:04]} 37. Rbc1 {[%clk 0:01:03]}  Qg6 {[%clk 0:00:02]} 38. Rxc8 {[%clk 0:00:57]}  Bxc8 {[%clk 0:00:03]} 39. f4 {[%clk 0:00:46]}  g3 {[%clk 0:00:01]} 40. Qxb4 {[%clk 0:00:41]}  Qh5 {[%clk 0:00:01]} 41. Kf1 {[%clk 0:00:38]}  Qh1+ {[%clk 0:00:01]} 42. Bg1 {[%clk 0:00:38]}  a5 {[%clk 0:00:02]} 43. Qb5 {[%clk 0:00:39]}  Rd8 {[%clk 0:00:01]} 44. Qg5+ {[%clk 0:00:24]} 1-0


[Site "https://www.chess.com"]

[Event "Titled Tuesday Blitz April 11 Early 2023"]
[White "Srihari L R"]
[Black "tetrix83"]
[WhiteFideId "46617116"]
[WhiteElo "2334"]
[BlackElo "2535"]
[Result "1-0"]
[Round "02"]
[TimeControl "180+2"]
[Date "2023.04.11"]
[WhiteClock "0:00:47"]
[BlackClock "0:00:25"]

1. c4 {[%clk 0:03:00]}  Nf6 {[%clk 0:02:59]} 2. Nc3 {[%clk 0:03:00]}  g6 {[%clk 0:02:59]} 3. g3 {[%clk 0:02:59]}  Bg7 {[%clk 0:03:00]} 4. Bg2 {[%clk 0:03:00]}  O-O {[%clk 0:03:00]} 5. d4 {[%clk 0:03:01]}  d6 {[%clk 0:03:00]} 6. Nf3 {[%clk 0:03:01]}  c6 {[%clk 0:03:01]} 7. e4 {[%clk 0:03:01]}  c5 {[%clk 0:03:00]} 8. O-O {[%clk 0:03:00]}  cxd4 {[%clk 0:02:57]} 9. Nxd4 {[%clk 0:03:00]}  Nc6 {[%clk 0:02:49]} 10. Nde2 {[%clk 0:02:59]}  Be6 {[%clk 0:02:47]} 11. b3 {[%clk 0:02:59]}  a6 {[%clk 0:02:46]} 12. h3 {[%clk 0:02:57]}  b5 {[%clk 0:02:43]} 13. cxb5 {[%clk 0:02:57]}  axb5 {[%clk 0:02:43]} 14. Nxb5 {[%clk 0:02:48]}  Nxe4 {[%clk 0:02:43]} 15. Rb1 {[%clk 0:02:35]}  d5 {[%clk 0:02:41]} 16. a4 {[%clk 0:02:35]}  Qd7 {[%clk 0:02:31]} 17. Kh2 {[%clk 0:02:34]}  Rfd8 {[%clk 0:02:23]} 18. Bb2 {[%clk 0:02:32]}  Nf6 {[%clk 0:02:19]} 19. Rc1 {[%clk 0:02:27]}  Bf5 {[%clk 0:02:10]} 20. Ned4 {[%clk 0:02:19]}  Nxd4 {[%clk 0:02:09]} 21. Nxd4 {[%clk 0:02:15]}  Ne4 {[%clk 0:02:01]} 22. Qe2 {[%clk 0:02:12]}  Rab8 {[%clk 0:01:44]} 23. Nc6 {[%clk 0:02:04]}  Rxb3 {[%clk 0:01:37]} 24. Bxg7 {[%clk 0:02:03]}  Kxg7 {[%clk 0:01:35]} 25. Nxd8 {[%clk 0:02:04]}  Qxd8 {[%clk 0:01:35]} 26. Rfd1 {[%clk 0:01:56]}  Qd6 {[%clk 0:01:27]} 27. Rd3 {[%clk 0:01:21]}  Rb4 {[%clk 0:01:08]} 28. Ra3 {[%clk 0:01:18]}  Nc5 {[%clk 0:00:59]} 29. a5 {[%clk 0:01:12]}  d4 {[%clk 0:00:59]} 30. a6 {[%clk 0:01:08]}  d3 {[%clk 0:00:59]} 31. Qd2 {[%clk 0:01:08]}  Rb3 {[%clk 0:00:56]} 32. Rxb3 {[%clk 0:00:56]}  Nxb3 {[%clk 0:00:57]} 33. Qb2+ {[%clk 0:00:54]}  Nd4 {[%clk 0:00:50]} 34. a7 {[%clk 0:00:53]}  d2 {[%clk 0:00:50]} 35. Rd1 {[%clk 0:00:52]}  e5 {[%clk 0:00:30]} 36. a8=Q {[%clk 0:00:48]}  h5 {[%clk 0:00:25]} 37. Qbb8 {[%clk 0:00:47]} 1-0


[Site "https://www.chess.com"]

[Event "Titled Tuesday Blitz April 11 Early 2023"]
[White "Deng, Henry"]
[Black "Erdogdu, Mert"]
[WhiteFideId "30965454"]
[BlackFideId "6301495"]
[WhiteElo "2523"]
[BlackElo "2407"]
[Result "1/2-1/2"]
[Round "02"]
[TimeControl "180+2"]
[Date "2023.04.11"]
[WhiteClock "0:00:47"]
[BlackClock "0:00:08"]

1. e4 {[%clk 0:02:59]}  c5 {[%clk 0:02:59]} 2. Nc3 {[%clk 0:02:59]}  d6 {[%clk 0:02:59]} 3. Bb5+ {[%clk 0:02:58]}  Bd7 {[%clk 0:02:59]} 4. Bxd7+ {[%clk 0:02:59]}  Qxd7 {[%clk 0:03:00]} 5. d4 {[%clk 0:02:59]}  cxd4 {[%clk 0:03:00]} 6. Qxd4 {[%clk 0:02:59]}  Nc6 {[%clk 0:03:01]} 7. Qd3 {[%clk 0:03:00]}  Nf6 {[%clk 0:03:01]} 8. Nf3 {[%clk 0:03:00]}  g6 {[%clk 0:03:02]} 9. O-O {[%clk 0:02:58]}  Bg7 {[%clk 0:03:02]} 10. Nd5 {[%clk 0:02:42]}  O-O {[%clk 0:02:57]} 11. Bg5 {[%clk 0:02:43]}  Nxd5 {[%clk 0:02:44]} 12. exd5 {[%clk 0:02:40]}  Nb4 {[%clk 0:02:41]} 13. Qb3 {[%clk 0:02:38]}  a5 {[%clk 0:02:38]} 14. Rae1 {[%clk 0:02:30]}  Rfe8 {[%clk 0:02:38]} 15. c3 {[%clk 0:02:28]}  Nd3 {[%clk 0:02:32]} 16. Re3 {[%clk 0:02:25]}  Nc5 {[%clk 0:02:21]} 17. Qc4 {[%clk 0:02:25]}  b5 {[%clk 0:02:11]} 18. Qh4 {[%clk 0:02:24]}  e5 {[%clk 0:02:07]} 19. dxe6 {[%clk 0:02:23]}  Rxe6 {[%clk 0:02:03]} 20. Rd1 {[%clk 0:02:22]}  Rae8 {[%clk 0:01:56]} 21. h3 {[%clk 0:02:19]}  Na4 {[%clk 0:01:40]} 22. Rd2 {[%clk 0:02:12]}  Nb6 {[%clk 0:01:36]} 23. Rde2 {[%clk 0:02:05]}  Nc4 {[%clk 0:01:30]} 24. Rxe6 {[%clk 0:02:04]}  Rxe6 {[%clk 0:01:29]} 25. Rxe6 {[%clk 0:01:56]}  fxe6 {[%clk 0:01:30]} 26. Bc1 {[%clk 0:01:54]}  d5 {[%clk 0:01:26]} 27. Ng5 {[%clk 0:01:44]}  h6 {[%clk 0:01:13]} 28. Nf3 {[%clk 0:01:44]}  g5 {[%clk 0:01:13]} 29. Qg4 {[%clk 0:01:44]}  Qf7 {[%clk 0:00:52]} 30. h4 {[%clk 0:01:41]}  gxh4 {[%clk 0:00:51]} 31. Bxh6 {[%clk 0:01:36]}  h3 {[%clk 0:00:34]} 32. Bxg7 {[%clk 0:01:33]}  Qxg7 {[%clk 0:00:35]} 33. Qxe6+ {[%clk 0:01:34]}  Kf8 {[%clk 0:00:35]} 34. Qxh3 {[%clk 0:01:32]}  Nxb2 {[%clk 0:00:31]} 35. Qc8+ {[%clk 0:01:31]}  Kf7 {[%clk 0:00:31]} 36. Qd7+ {[%clk 0:01:32]}  Kg8 {[%clk 0:00:31]} 37. Qxd5+ {[%clk 0:01:32]}  Kh8 {[%clk 0:00:31]} 38. Qh5+ {[%clk 0:01:29]}  Kg8 {[%clk 0:00:31]} 39. Ng5 {[%clk 0:01:28]}  Qf6 {[%clk 0:00:24]} 40. Qe8+ {[%clk 0:01:21]}  Kg7 {[%clk 0:00:24]} 41. Qxb5 {[%clk 0:01:19]}  Qxc3 {[%clk 0:00:22]} 42. Qd7+ {[%clk 0:01:17]}  Kg6 {[%clk 0:00:22]} 43. Qg4 {[%clk 0:01:07]}  Qc1+ {[%clk 0:00:21]} 44. Kh2 {[%clk 0:01:07]}  Qxg5 {[%clk 0:00:21]} 45. Qe6+ {[%clk 0:01:02]}  Qf6 {[%clk 0:00:21]} 46. Qg8+ {[%clk 0:01:02]}  Kh6 {[%clk 0:00:21]} 47. Qg3 {[%clk 0:00:58]}  Nc4 {[%clk 0:00:13]} 48. Qh3+ {[%clk 0:00:57]}  Kg5 {[%clk 0:00:06]} 49. Qg3+ {[%clk 0:00:54]}  Kh6 {[%clk 0:00:07]} 50. Qh3+ {[%clk 0:00:52]}  Kg5 {[%clk 0:00:07]} 51. Qg3+ {[%clk 0:00:47]}  Kh6 {[%clk 0:00:08]} 1/2-1/2


[Site "https://www.chess.com"]

[Event "Titled Tuesday Blitz April 11 Early 2023"]
[White "Ilkhomi, Jaloliddin"]
[Black "Dominguez Pons, Eric"]
[WhiteFideId "14700948"]
[BlackFideId "2262916"]
[WhiteElo "2045"]
[BlackElo "2302"]
[Result "1-0"]
[Round "02"]
[TimeControl "180+2"]
[Date "2023.04.11"]
[WhiteClock "0:02:25"]
[BlackClock "0:01:12"]

1. Nf3 {[%clk 0:03:00]}  Nf6 {[%clk 0:02:58]} 2. d4 {[%clk 0:03:00]}  d5 {[%clk 0:02:56]} 3. Bf4 {[%clk 0:03:00]}  c5 {[%clk 0:02:56]} 4. e3 {[%clk 0:03:00]}  Nc6 {[%clk 0:02:55]} 5. c3 {[%clk 0:03:00]}  Bf5 {[%clk 0:02:52]} 6. Bd3 {[%clk 0:03:00]}  Bxd3 {[%clk 0:02:51]} 7. Qxd3 {[%clk 0:03:00]}  e6 {[%clk 0:02:51]} 8. Nbd2 {[%clk 0:03:01]}  Nh5 {[%clk 0:02:47]} 9. Be5 {[%clk 0:03:00]}  f6 {[%clk 0:02:47]} 10. Bg3 {[%clk 0:02:59]}  Nxg3 {[%clk 0:02:47]} 11. hxg3 {[%clk 0:03:00]}  g6 {[%clk 0:02:45]} 12. e4 {[%clk 0:03:00]}  cxd4 {[%clk 0:02:43]} 13. Nxd4 {[%clk 0:03:00]}  Nxd4 {[%clk 0:02:41]} 14. Qxd4 {[%clk 0:03:01]}  dxe4 {[%clk 0:02:28]} 15. Qxe4 {[%clk 0:03:01]}  Qd5 {[%clk 0:02:24]} 16. O-O {[%clk 0:02:46]}  Qxe4 {[%clk 0:02:10]} 17. Nxe4 {[%clk 0:02:47]}  f5 {[%clk 0:02:09]} 18. Ng5 {[%clk 0:02:46]}  O-O-O {[%clk 0:02:03]} 19. Nf7 {[%clk 0:02:43]}  Bg7 {[%clk 0:01:55]} 20. Nxh8 {[%clk 0:02:41]}  Bxh8 {[%clk 0:01:55]} 21. Rad1 {[%clk 0:02:42]}  Re8 {[%clk 0:01:55]} 22. Rfe1 {[%clk 0:02:41]}  e5 {[%clk 0:01:55]} 23. Rd5 {[%clk 0:02:41]}  Kc7 {[%clk 0:01:54]} 24. Red1 {[%clk 0:02:39]}  Re7 {[%clk 0:01:54]} 25. c4 {[%clk 0:02:39]}  e4 {[%clk 0:01:53]} 26. b4 {[%clk 0:02:39]}  Bc3 {[%clk 0:01:53]} 27. b5 {[%clk 0:02:39]}  e3 {[%clk 0:01:48]} 28. fxe3 {[%clk 0:02:39]}  Rxe3 {[%clk 0:01:49]} 29. c5 {[%clk 0:02:38]}  Re7 {[%clk 0:01:34]} 30. a4 {[%clk 0:02:37]}  Be5 {[%clk 0:01:29]} 31. R1d3 {[%clk 0:02:30]}  a6 {[%clk 0:01:26]} 32. Kh2 {[%clk 0:02:28]}  h5 {[%clk 0:01:26]} 33. Re3 {[%clk 0:02:27]}  Bf6 {[%clk 0:01:24]} 34. Red3 {[%clk 0:02:24]}  Be5 {[%clk 0:01:17]} 35. Kh3 {[%clk 0:02:24]}  g5 {[%clk 0:01:12]} 36. Re3 {[%clk 0:02:25]}  g4+ {[%clk 0:01:12]} 37. Kh2 {[%clk 0:02:25]}  Bf6 {[%clk 0:01:12]} 38. Rxe7+ {[%clk 0:02:25]} 1-0


[Site "https://www.chess.com"]

[Event "Titled Tuesday Blitz April 11 Early 2023"]
[White "Grot, Blazej"]
[Black "Ioannidis, Evgenios"]
[WhiteFideId "21835845"]
[BlackFideId "4229274"]
[WhiteElo "1823"]
[BlackElo "2386"]
[Result "1/2-1/2"]
[Round "02"]
[TimeControl "180+2"]
[Date "2023.04.11"]
[WhiteClock "0:00:10"]
[BlackClock "0:00:05"]

1. e4 {[%clk 0:03:00]}  e6 {[%clk 0:03:00]} 2. d4 {[%clk 0:02:59]}  d5 {[%clk 0:03:00]} 3. exd5 {[%clk 0:02:56]}  exd5 {[%clk 0:03:00]} 4. Nf3 {[%clk 0:02:57]}  c5 {[%clk 0:02:58]} 5. c3 {[%clk 0:02:56]}  Nc6 {[%clk 0:02:54]} 6. dxc5 {[%clk 0:02:55]}  Bxc5 {[%clk 0:02:54]} 7. Bb5 {[%clk 0:02:51]}  Nf6 {[%clk 0:02:51]} 8. O-O {[%clk 0:02:50]}  O-O {[%clk 0:02:50]} 9. Nbd2 {[%clk 0:02:49]}  Bg4 {[%clk 0:02:48]} 10. h3 {[%clk 0:02:48]}  Bh5 {[%clk 0:02:48]} 11. Be2 {[%clk 0:02:42]}  Re8 {[%clk 0:02:47]} 12. Nb3 {[%clk 0:02:42]}  Bb6 {[%clk 0:02:41]} 13. Re1 {[%clk 0:02:41]}  Qd6 {[%clk 0:02:39]} 14. Nfd4 {[%clk 0:02:34]}  Bc7 {[%clk 0:02:28]} 15. g3 {[%clk 0:02:30]}  Bxe2 {[%clk 0:02:22]} 16. Rxe2 {[%clk 0:02:30]}  Rxe2 {[%clk 0:02:21]} 17. Qxe2 {[%clk 0:02:31]}  Re8 {[%clk 0:02:19]} 18. Be3 {[%clk 0:02:25]}  Qd7 {[%clk 0:02:17]} 19. Kg2 {[%clk 0:02:22]}  Ne5 {[%clk 0:02:10]} 20. Nd2 {[%clk 0:02:16]}  Bb6 {[%clk 0:01:58]} 21. Rf1 {[%clk 0:02:08]}  h6 {[%clk 0:01:54]} 22. Re1 {[%clk 0:02:03]}  Qa4 {[%clk 0:01:44]} 23. Ra1 {[%clk 0:02:02]}  Nc6 {[%clk 0:01:28]} 24. Qd1 {[%clk 0:01:57]}  Qa6 {[%clk 0:01:21]} 25. N2f3 {[%clk 0:01:53]}  Na5 {[%clk 0:01:02]} 26. b3 {[%clk 0:01:49]}  Bc7 {[%clk 0:01:00]} 27. Qe2 {[%clk 0:01:44]}  Qxe2 {[%clk 0:00:57]} 28. Nxe2 {[%clk 0:01:45]}  a6 {[%clk 0:00:51]} 29. Nfd4 {[%clk 0:01:41]}  Ne4 {[%clk 0:00:49]} 30. Rc1 {[%clk 0:01:35]}  Be5 {[%clk 0:00:49]} 31. c4 {[%clk 0:01:32]}  dxc4 {[%clk 0:00:47]} 32. bxc4 {[%clk 0:01:33]}  Rc8 {[%clk 0:00:45]} 33. Kf3 {[%clk 0:01:21]}  Nc5 {[%clk 0:00:37]} 34. Nf5 {[%clk 0:01:18]}  Kf8 {[%clk 0:00:34]} 35. Nf4 {[%clk 0:01:12]}  Ne6 {[%clk 0:00:28]} 36. c5 {[%clk 0:01:06]}  Nc6 {[%clk 0:00:24]} 37. Rb1 {[%clk 0:01:02]}  Rc7 {[%clk 0:00:18]} 38. Nd5 {[%clk 0:01:02]}  Rd7 {[%clk 0:00:17]} 39. Nb6 {[%clk 0:00:58]}  Rd3 {[%clk 0:00:15]} 40. Ke2 {[%clk 0:00:54]}  Ra3 {[%clk 0:00:14]} 41. Nd7+ {[%clk 0:00:50]}  Kg8 {[%clk 0:00:12]} 42. Nxe5 {[%clk 0:00:50]}  Nxe5 {[%clk 0:00:13]} 43. Rxb7 {[%clk 0:00:44]}  Rxa2+ {[%clk 0:00:13]} 44. Kf1 {[%clk 0:00:43]}  Nc4 {[%clk 0:00:12]} 45. c6 {[%clk 0:00:38]}  Rc2 {[%clk 0:00:12]} 46. Bf4 {[%clk 0:00:35]}  Nxf4 {[%clk 0:00:12]} 47. gxf4 {[%clk 0:00:36]}  Nd2+ {[%clk 0:00:12]} 48. Kg2 {[%clk 0:00:31]}  g6 {[%clk 0:00:10]} 49. c7 {[%clk 0:00:30]}  gxf5 {[%clk 0:00:05]} 50. Rb8+ {[%clk 0:00:30]}  Kg7 {[%clk 0:00:05]} 51. c8=Q {[%clk 0:00:30]}  Rxc8 {[%clk 0:00:06]} 52. Rxc8 {[%clk 0:00:31]}  Ne4 {[%clk 0:00:06]} 53. Ra8 {[%clk 0:00:30]}  Nc5 {[%clk 0:00:06]} 54. Rc8 {[%clk 0:00:29]}  Ne6 {[%clk 0:00:06]} 55. Rc4 {[%clk 0:00:26]}  Kf6 {[%clk 0:00:06]} 56. Ra4 {[%clk 0:00:26]}  Kg6 {[%clk 0:00:05]} 57. Rxa6 {[%clk 0:00:26]}  Kh5 {[%clk 0:00:05]} 58. Kg3 {[%clk 0:00:26]}  Nc5 {[%clk 0:00:05]} 59. Ra7 {[%clk 0:00:23]}  Ne4+ {[%clk 0:00:05]} 60. Kg2 {[%clk 0:00:22]}  Kg6 {[%clk 0:00:06]} 61. f3 {[%clk 0:00:22]}  Nc5 {[%clk 0:00:05]} 62. Rc7 {[%clk 0:00:22]}  Ne6 {[%clk 0:00:05]} 63. Rc6 {[%clk 0:00:22]}  Kg7 {[%clk 0:00:05]} 64. Ra6 {[%clk 0:00:22]}  Nxf4+ {[%clk 0:00:05]} 65. Kg3 {[%clk 0:00:21]}  Ne6 {[%clk 0:00:06]} 66. Ra5 {[%clk 0:00:20]}  Kf6 {[%clk 0:00:07]} 67. Ra6 {[%clk 0:00:20]}  Kg6 {[%clk 0:00:06]} 68. Ra5 {[%clk 0:00:19]}  Kg5 {[%clk 0:00:06]} 69. Ra6 {[%clk 0:00:19]}  h5 {[%clk 0:00:05]} 70. Ra7 {[%clk 0:00:18]}  h4+ {[%clk 0:00:05]} 71. Kf2 {[%clk 0:00:17]}  Kf4 {[%clk 0:00:05]} 72. Rxf7 {[%clk 0:00:16]}  Ng5 {[%clk 0:00:05]} 73. Rg7 {[%clk 0:00:15]}  Nxh3+ {[%clk 0:00:05]} 74. Kg2 {[%clk 0:00:15]}  Ng5 {[%clk 0:00:06]} 75. Rg8 {[%clk 0:00:15]}  Nxf3 {[%clk 0:00:06]} 76. Rh8 {[%clk 0:00:15]}  Kg4 {[%clk 0:00:06]} 77. Rg8+ {[%clk 0:00:15]}  Ng5 {[%clk 0:00:07]} 78. Rf8 {[%clk 0:00:14]}  f4 {[%clk 0:00:07]} 79. Kh2 {[%clk 0:00:12]}  Nf3+ {[%clk 0:00:07]} 80. Kg2 {[%clk 0:00:12]}  Ng5 {[%clk 0:00:08]} 81. Rg8 {[%clk 0:00:11]}  h3+ {[%clk 0:00:08]} 82. Kh2 {[%clk 0:00:11]}  f3 {[%clk 0:00:05]} 83. Rf8 {[%clk 0:00:11]}  Ne4 {[%clk 0:00:05]} 84. Rxf3 {[%clk 0:00:11]}  Kxf3 {[%clk 0:00:05]} 85. Kxh3 {[%clk 0:00:10]} 1/2-1/2


[Site "https://www.chess.com"]

[Event "Titled Tuesday Blitz April 11 Early 2023"]
[White "Gil Alba, Hector Luis"]
[Black "Korchmar, Vasiliy"]
[WhiteFideId "3504670"]
[BlackFideId "24131750"]
[WhiteElo "2331"]
[BlackElo "2370"]
[Result "1-0"]
[Round "02"]
[TimeControl "180+2"]
[Date "2023.04.11"]
[WhiteClock "0:01:02"]
[BlackClock "0:00:03"]

1. e4 {[%clk 0:03:00]}  c5 {[%clk 0:02:59]} 2. Nf3 {[%clk 0:02:59]}  d6 {[%clk 0:03:00]} 3. Bb5+ {[%clk 0:02:59]}  Nd7 {[%clk 0:03:00]} 4. O-O {[%clk 0:02:58]}  a6 {[%clk 0:03:00]} 5. Bxd7+ {[%clk 0:02:58]}  Bxd7 {[%clk 0:03:01]} 6. c3 {[%clk 0:02:59]}  Nf6 {[%clk 0:03:01]} 7. Re1 {[%clk 0:02:59]}  e6 {[%clk 0:02:57]} 8. d4 {[%clk 0:02:59]}  Be7 {[%clk 0:02:54]} 9. Bg5 {[%clk 0:02:57]}  h6 {[%clk 0:02:53]} 10. Bh4 {[%clk 0:02:57]}  O-O {[%clk 0:02:53]} 11. Nbd2 {[%clk 0:02:56]}  b5 {[%clk 0:02:45]} 12. dxc5 {[%clk 0:02:53]}  dxc5 {[%clk 0:02:45]} 13. Qe2 {[%clk 0:02:53]}  Bc6 {[%clk 0:02:41]} 14. Rad1 {[%clk 0:02:52]}  Nd7 {[%clk 0:02:39]} 15. Bg3 {[%clk 0:02:49]}  Qb6 {[%clk 0:02:35]} 16. c4 {[%clk 0:02:44]}  Rfd8 {[%clk 0:02:30]} 17. b3 {[%clk 0:02:44]}  Bf6 {[%clk 0:02:21]} 18. Bd6 {[%clk 0:02:37]}  Bc3 {[%clk 0:02:01]} 19. e5 {[%clk 0:02:22]}  b4 {[%clk 0:01:51]} 20. Rf1 {[%clk 0:02:19]}  a5 {[%clk 0:01:39]} 21. Ne4 {[%clk 0:02:15]}  Bxe4 {[%clk 0:01:31]} 22. Qxe4 {[%clk 0:02:13]}  Nf8 {[%clk 0:01:20]} 23. Be7 {[%clk 0:01:58]}  Re8 {[%clk 0:01:11]} 24. Rd6 {[%clk 0:01:56]}  Qa7 {[%clk 0:01:04]} 25. Bxf8 {[%clk 0:01:55]}  Rxf8 {[%clk 0:01:03]} 26. Rfd1 {[%clk 0:01:55]}  a4 {[%clk 0:01:04]} 27. g4 {[%clk 0:01:48]}  axb3 {[%clk 0:01:03]} 28. axb3 {[%clk 0:01:49]}  Qa2 {[%clk 0:01:04]} 29. g5 {[%clk 0:01:44]}  h5 {[%clk 0:00:37]} 30. g6 {[%clk 0:01:37]}  fxg6 {[%clk 0:00:33]} 31. Rxe6 {[%clk 0:01:37]}  Qxb3 {[%clk 0:00:27]} 32. Rf1 {[%clk 0:01:34]}  Bd4 {[%clk 0:00:16]} 33. Kg2 {[%clk 0:01:23]}  Qxc4 {[%clk 0:00:13]} 34. Rxg6 {[%clk 0:01:20]}  Rae8 {[%clk 0:00:04]} 35. e6 {[%clk 0:01:14]}  b3 {[%clk 0:00:04]} 36. Ng5 {[%clk 0:01:14]}  b2 {[%clk 0:00:03]} 37. Rh6 {[%clk 0:01:06]}  Qxf1+ {[%clk 0:00:02]} 38. Kxf1 {[%clk 0:01:02]}  Rxf2+ {[%clk 0:00:03]} 39. Ke1 {[%clk 0:01:02]} 1-0


[Site "https://www.chess.com"]

[Event "Titled Tuesday Blitz April 11 Early 2023"]
[White "Averjanov, Alexey"]
[Black "Avazkhonov, Alikhon"]
[WhiteFideId "14109867"]
[BlackFideId "14208504"]
[WhiteElo "2728"]
[BlackElo "1739"]
[Result "1-0"]
[Round "02"]
[TimeControl "180+2"]
[Date "2023.04.11"]
[WhiteClock "0:01:37"]
[BlackClock "0:00:04"]

1. d4 {[%clk 0:03:00]}  Nf6 {[%clk 0:02:54]} 2. c4 {[%clk 0:03:00]}  e6 {[%clk 0:02:54]} 3. Nf3 {[%clk 0:03:00]}  Bb4+ {[%clk 0:02:53]} 4. Nbd2 {[%clk 0:03:00]}  b6 {[%clk 0:02:53]} 5. g3 {[%clk 0:02:59]}  Bb7 {[%clk 0:02:53]} 6. Bg2 {[%clk 0:02:58]}  O-O {[%clk 0:02:53]} 7. O-O {[%clk 0:02:57]}  d6 {[%clk 0:02:11]} 8. b3 {[%clk 0:02:53]}  Bxd2 {[%clk 0:02:11]} 9. Qxd2 {[%clk 0:02:52]}  Nbd7 {[%clk 0:02:10]} 10. Bb2 {[%clk 0:02:49]}  Ne4 {[%clk 0:02:04]} 11. Qc2 {[%clk 0:02:49]}  f5 {[%clk 0:02:05]} 12. d5 {[%clk 0:02:48]}  e5 {[%clk 0:02:04]} 13. Nh4 {[%clk 0:02:48]}  Ndc5 {[%clk 0:01:04]} 14. Nxf5 {[%clk 0:02:38]}  Rxf5 {[%clk 0:01:05]} 15. Bxe4 {[%clk 0:02:37]}  Nxe4 {[%clk 0:01:04]} 16. Qxe4 {[%clk 0:02:38]}  Rf7 {[%clk 0:00:58]} 17. f4 {[%clk 0:02:38]}  exf4 {[%clk 0:00:56]} 18. Rxf4 {[%clk 0:02:34]}  Rxf4 {[%clk 0:00:56]} 19. Qxf4 {[%clk 0:02:34]}  Qe7 {[%clk 0:00:57]} 20. Rf1 {[%clk 0:02:30]}  Rf8 {[%clk 0:00:57]} 21. Qxf8+ {[%clk 0:02:30]}  Qxf8 {[%clk 0:00:58]} 22. Rxf8+ {[%clk 0:02:30]}  Kxf8 {[%clk 0:00:59]} 23. Kf2 {[%clk 0:02:29]}  Kf7 {[%clk 0:00:51]} 24. e4 {[%clk 0:02:29]}  c6 {[%clk 0:00:46]} 25. Ke3 {[%clk 0:02:27]}  g5 {[%clk 0:00:25]} 26. Kd4 {[%clk 0:02:23]}  Kf6 {[%clk 0:00:18]} 27. a3 {[%clk 0:02:05]}  h5 {[%clk 0:00:15]} 28. h4 {[%clk 0:02:01]}  gxh4 {[%clk 0:00:15]} 29. gxh4 {[%clk 0:02:02]}  cxd5 {[%clk 0:00:12]} 30. Ke3+ {[%clk 0:01:57]}  Kg6 {[%clk 0:00:09]} 31. cxd5 {[%clk 0:01:55]}  Ba6 {[%clk 0:00:09]} 32. Kf4 {[%clk 0:01:54]}  Bd3 {[%clk 0:00:09]} 33. e5 {[%clk 0:01:53]}  dxe5+ {[%clk 0:00:09]} 34. Kxe5 {[%clk 0:01:54]}  Kf7 {[%clk 0:00:09]} 35. Kd6 {[%clk 0:01:54]}  Be4 {[%clk 0:00:08]} 36. Bc1 {[%clk 0:01:51]}  Ke8 {[%clk 0:00:08]} 37. Bg5 {[%clk 0:01:51]}  Bf3 {[%clk 0:00:06]} 38. Kc6 {[%clk 0:01:50]}  Bg2 {[%clk 0:00:05]} 39. b4 {[%clk 0:01:50]}  Bh1 {[%clk 0:00:02]} 40. a4 {[%clk 0:01:50]}  Bg2 {[%clk 0:00:02]} 41. Bf6 {[%clk 0:01:50]}  Bf3 {[%clk 0:00:02]} 42. Kb7 {[%clk 0:01:46]}  Bxd5+ {[%clk 0:00:02]} 43. Kxa7 {[%clk 0:01:46]}  Bb3 {[%clk 0:00:03]} 44. a5 {[%clk 0:01:43]}  bxa5 {[%clk 0:00:03]} 45. bxa5 {[%clk 0:01:44]}  Kd7 {[%clk 0:00:04]} 46. Kb8 {[%clk 0:01:37]}  Kc6 {[%clk 0:00:04]} 47. a6 {[%clk 0:01:37]} 1-0


[Site "https://www.chess.com"]